fUSD/lending_fUSD_20240525
["ID","MTS","AMOUNT","RATE_DAILY","PERIOD"]
[327914037,1716623446425,-155.0,0.00028212,2]
[327914038,1716623446434,-4365.51239636,0.00028212,2]
[327914039,1716623446443,-155.60459176,0.00028212,2]
[327914040,1716623446452,-655.3037065,0.00028212,2]
[327914041,1716623446461,-327.78454066,0.00028212,2]
[327914042,1716623446470,-450.48073971,0.00028212,2]
[327914043,1716623446479,-1277.55903137,0.00028212,2]
[327914044,1716623446488,-292.85432172,0.00028213,2]
[327914045,1716623446497,-409.95221642,0.00028213,2]
[327914046,1716623446506,-214.0,0.00028214,2]
[327914047,1716623446514,-180.74659829,0.00028214,2]
[327914048,1716623446524,-4563.67951761,0.00028214,2]
[327914049,1716623446532,-28467.15056071,0.00028214,2]
[327914050,1716623446541,-500.0,0.00028299,2]
[327914051,1716623446550,-500.0,0.00028299,2]
[327914052,1716623446559,-632.88089841,0.00028299,2]
[327914053,1716623446568,-500.0,0.00028299,2]
[327914054,1716623446577,-500.0,0.00028299,2]
[327914055,1716623446587,-500.0,0.00028299,2]
[327914056,1716623446595,-500.0,0.00028299,2]
[327914057,1716623446605,-500.0,0.00028299,2]
[327914058,1716623446613,-500.0,0.00028299,2]
[327914059,1716623446622,-428.67910979,0.00028299,2]
[327914060,1716623446631,-500.0,0.00028299,2]
[327914061,1716623446640,-500.0,0.00028299,2]
[327914062,1716623446649,-500.0,0.00028299,2]
[327914063,1716623446658,-500.0,0.00028299,2]
[327914064,1716623446667,-500.0,0.00028299,2]
[327914065,1716623446677,-500.0,0.00028299,2]
[327914066,1716623446686,-500.0,0.00028299,2]
[327914067,1716623446698,-500.0,0.00028299,2]
[327914068,1716623446707,-500.0,0.00028299,2]
[327914069,1716623446716,-500.0,0.00028299,2]
[327914070,1716623446726,-500.0,0.00028299,2]
[327914071,1716623446734,-500.0,0.00028299,2]
[327914072,1716623446744,-500.0,0.00028299,2]
[327914073,1716623446753,-500.0,0.00028299,2]
[327914074,1716623446762,-500.0,0.00028299,2]
[327914075,1716623446770,-500.0,0.00028299,2]
[327914076,1716623446947,-27428.3797193,0.000283,2]
[327914077,1716623446956,-1445.1598821,0.000283,2]
[327914078,1716623446968,-5026.1531101,0.000283,2]
[327914079,1716623446977,-7078.5141656,0.00028306,2]
[327914080,1716623446986,-155.16690706,0.00028312,2]
[327914081,1716623446995,-200.0,0.00028312,2]
[327914082,1716623447004,-162.53728364,0.00028312,2]
[327914083,1716623447013,-155.42771822,0.00028312,4]
[327914084,1716623447023,-207.37022733,0.00028312,2]
[327914085,1716623447032,-4474.76310645,0.00028312,2]
[327914086,1716623447041,-237.48860909,0.00028312,2]
[327914087,1716623447051,-1067.18004523,0.00028312,2]
[327914088,1716623447061,-1003.64939934,0.00028312,2]
[327914089,1716623447071,-400.0,0.00028312,2]
[327914090,1716623447080,-1102.86625356,0.00028312,2]
[327914091,1716623447089,-327.02252959,0.00028312,2]
[327914092,1716623447098,-4748.08552782,0.00028312,2]
[327914093,1716623447107,-476.09516611,0.00028312,2]
[327914094,1716623447117,-1164.22082898,0.00028312,2]
[327914095,1716623447126,-155.31400873,0.00028312,2]
[327914096,1716623447135,-3645.70817053,0.00028312,2]
[327914097,1716623447145,-163.168342,0.00028312,7]
[327914098,1716623447155,-159.216532,0.00028312,7]
[327914099,1716623447163,-159.216532,0.00028312,7]
[327914100,1716623447173,-151.0,0.00028312,7]
[327914101,1716623447182,-151.0,0.00028312,7]
[327914102,1716623447191,-1048.226828,0.00028312,7]
[327914103,1716623447200,-1048.226828,0.00028312,7]
[327914104,1716623447209,-151.0,0.00028312,7]
[327914105,1716623447218,-4591.19380175,0.00028313,2]
[327914106,1716623447228,-151.0,0.00028313,7]
[327914107,1716623447237,-151.0,0.00028313,7]
[327914108,1716623447246,-157.314685,0.00028313,7]
[327914109,1716623447255,-157.314685,0.00028313,7]
[327914110,1716623447264,-151.0,0.00028313,7]
[327914111,1716623447274,-177.925572,0.00028313,7]
[327914112,1716623447284,-177.925572,0.00028313,7]
[327914113,1716623447293,-1048.226828,0.00028313,7]
[327914114,1716623447303,-1048.226828,0.00028313,7]
[327914115,1716623447314,-151.0,0.00028313,7]
[327914116,1716623447323,-151.0,0.00028313,7]
[327914117,1716623447332,-151.0,0.00028313,7]
[327914118,1716623447341,-151.0,0.00028313,7]
[327914119,1716623447351,-151.0,0.00028313,7]
[327914120,1716623447360,-151.0,0.00028313,7]
[327914121,1716623447369,-151.0,0.00028313,7]
[327914122,1716623447379,-211.214216,0.00028313,7]
[327914123,1716623447388,-211.214216,0.00028313,7]
[327914124,1716623447397,-464.0,0.00028314,5]
[327914125,1716623447407,-86279.31688435,0.00028314,15]
[327914126,1716623447420,-30632.0485286,0.00028314,15]
[327914419,1716623571919,-2276.9939,0.00014798,2]
[327914420,1716623571974,-1170.76249976,0.00014999,2]
[327914421,1716623572027,-337.30996305,0.00015,2]
[327914422,1716623572296,-3720.507,0.00015718,2]
[327914423,1716623572342,-3731.1,0.00016009,2]
[327914424,1716623572385,-3695.435,0.00016421,2]
[327914425,1716623572433,-10000.0,0.00016635,2]
[327914426,1716623572477,-5083.27432854,0.00017259,2]
[327914427,1716623572527,-1000.0,0.00019362,2]
[327914428,1716623572572,-1000.0,0.000209,2]
[327914429,1716623572614,-153.59097148,0.00022069,2]
[327914430,1716623572657,-2500.0,0.00022645,2]
[327914431,1716623572700,-1849.14899093,0.000234,2]
[327914432,1716623572743,-3734.799,0.00024009,2]
[327914433,1716623572787,-219.47923133,0.00024152,2]
[327914434,1716623572831,-402.26,0.00024282,2]
[327914435,1716623572894,-160.1442038,0.00024788,2]
[327914436,1716623572945,-154.03121004,0.0002522,2]
[327914437,1716623572993,-154.03121004,0.00025604,2]
[327914438,1716623573042,-5189.03261963,0.00026542,2]
[327914439,1716623573087,-619.31575855,0.00026543,2]
[327914440,1716623573267,-1227.82126936,0.00026543,2]
[327914441,1716623573310,-158.57592294,0.00026544,2]
[327914442,1716623573352,-242.09407043,0.00026544,2]
[327914443,1716623573401,-402.26,0.00026545,2]
[327914444,1716623573448,-161.54,0.0002661,2]
[327914445,1716623573498,-157.9143834,0.00026631,2]
[327914446,1716623573543,-154.03121004,0.00026637,2]
[327914447,1716623573588,-158.29189621,0.00026752,2]
[327914448,1716623573635,-154.03121004,0.00027052,2]
[327914449,1716623573683,-154.03121004,0.00027073,2]
[327914450,1716623573727,-2000.0,0.000274,2]
[327914451,1716623573770,-320.65926629,0.000274,2]
[327914452,1716623573812,-752.94466741,0.000274,2]
[327914453,1716623573855,-160.1442038,0.0002754,2]
[327914454,1716623573898,-1452.88,0.00027622,2]
[327914455,1716623573941,-252.32718806,0.00027732,2]
[327914456,1716623573985,-598.1196387,0.00027781,2]
[327914457,1716623574029,-161.54,0.0002798,2]
[327914458,1716623574075,-775.94,0.00028004,10]
[327914459,1716623574238,-740.35,0.00028004,10]
[327914460,1716623574281,-155.5707998,0.00028012,2]
[327914461,1716623574323,-240.68481887,0.00028012,2]
[327914462,1716623574366,-1287.908897,0.00028012,2]
[327914463,1716623574408,-155.0,0.00028012,2]
[327914464,1716623574450,-4980.72,0.00028014,2]
[327914465,1716623574494,-1042.3628912,0.00028014,2]
[327914466,1716623574536,-50499.22488405,0.00028014,2]
[327914467,1716623574578,-310.19800823,0.00028014,7]
[327914468,1716623574622,-245.55664197,0.00028029,2]
[327914469,1716623574665,-154.03121004,0.00028062,2]
[327914470,1716623574710,-151.0,0.00028155,7]
[327914471,1716623574754,-230.327108,0.00028155,7]
[327914472,1716623574801,-160.1442038,0.00028162,2]
[327914473,1716623574849,-391.73362814,0.00028211,2]
[327914474,1716623574893,-214.0,0.00028212,2]
[327914475,1716623574939,-18978.10037382,0.00028214,2]
[327914476,1716623574987,-870.02650195,0.00028214,2]
[327914477,1716623575152,-6372.8223769,0.000283,2]
[327914478,1716623575198,-155.0,0.00028312,2]
[327914479,1716623575242,-271.28964114,0.00028312,2]
[327914480,1716623575286,-151.0,0.00028312,7]
[327914481,1716623575329,-292.3707264,0.00028312,2]
[327914482,1716623575374,-151.0,0.00028313,7]
[327914483,1716623575418,-1074.38260938,0.00028313,15]
[327914484,1716623575461,-2977.81428,0.00028313,2]
[327914485,1716623575506,-414.0,0.00028313,5]
[327914486,1716623575550,-339107.94630169,0.00028314,4]
[327914487,1716623575592,-362.26669991,0.00028314,2]
[327914488,1716623575636,-711.9557359,0.00028314,2]
[327914489,1716623575680,-2000.0,0.00028314,2]
[327914490,1716623575722,-200.0,0.00028314,2]
[327914491,1716623575765,-151.0,0.00028314,7]
[327914492,1716623575808,-151.0,0.00028314,7]
[327914493,1716623575851,-151.0,0.00028314,7]
[327914494,1716623575893,-151.0,0.00028314,7]
[327914495,1716623575937,-151.0,0.00028314,7]
[327914496,1716623576087,-151.0,0.00028314,7]
[327914497,1716623576161,-151.0,0.00028314,7]
[327914498,1716623576235,-151.0,0.00028314,7]
[327914499,1716623576300,-151.0,0.00028314,7]
[327914500,1716623576345,-290.30217,0.00028314,7]
[327914501,1716623576389,-159.216532,0.00028314,7]
[327914502,1716623576434,-159.216532,0.00028314,7]
[327914503,1716623576476,-159.216532,0.00028314,7]
[327914504,1716623576518,-159.216532,0.00028314,7]
[327914505,1716623576561,-151.0,0.00028314,7]
[327914506,1716623576604,-151.0,0.00028314,7]
[327914507,1716623576648,-151.0,0.00028314,7]
[327914508,1716623576692,-151.0,0.00028314,7]
[327914509,1716623576736,-157.314685,0.00028314,7]
[327914510,1716623576780,-157.314685,0.00028314,7]
[327914511,1716623576823,-177.925572,0.00028314,7]
[327914512,1716623576865,-177.925572,0.00028314,7]
[327914513,1716623576908,-151.0,0.00028314,7]
[327914514,1716623576950,-151.0,0.00028314,7]
[327914515,1716623577095,-151.0,0.00028314,7]
[327914516,1716623577138,-151.0,0.00028314,7]
[327914517,1716623577182,-151.0,0.00028314,7]
[327914518,1716623577224,-151.0,0.00028314,7]
[327914519,1716623577267,-151.0,0.00028314,7]
[327914520,1716623577309,-211.214216,0.00028314,7]
[327914521,1716623577352,-211.214216,0.00028314,7]
[327914522,1716623577395,-151.0,0.00028314,7]
[327914523,1716623577439,-1044.31301003,0.00028314,2]
[327914524,1716623577482,-150.0,0.000285,5]
[327914525,1716623577528,-160.1442038,0.00028636,2]
[327914526,1716623577571,-404.68,0.00028744,2]
[327914527,1716623577613,-910.0,0.000288,2]
[327914528,1716623577656,-402.26,0.00028809,2]
[327914529,1716623577699,-92.37518011,0.00028867,2]
[327914551,1716624632117,-1350.96060144,0.00013952,2]
[327914552,1716624632127,-240.98288585,0.00013953,2]
[327914553,1716624632137,-155.0,0.00013954,2]
[327914554,1716624632146,-1789.09722972,0.00013957,2]
[327914555,1716624632156,-168.08,0.00013973,2]
[327914556,1716624632165,-203.71,0.00013973,2]
[327914557,1716624632175,-535.45,0.00015266,2]
[327914559,1716624632184,-619.31575855,0.00015899,2]
[327914561,1716624632194,-4967.0,0.000159,2]
[327914563,1716624632204,-3673.19,0.00015909,2]
[327914565,1716624632213,-3635.639,0.00015975,2]
[327914567,1716624632223,-3652.466,0.00016081,2]
[327914569,1716624632232,-3636.474,0.00016251,2]
[327914571,1716624632242,-499.99,0.00016251,2]
[327914573,1716624632252,-3562.97,0.000165,2]
[327914575,1716624632262,-1227.82126936,0.00016519,2]
[327914577,1716624632271,-3677.193,0.0001652,2]
[327914579,1716624632281,-192.84,0.0001652,4]
[327914581,1716624632290,-150.99,0.0001652,2]
[327914583,1716624632300,-3701.285,0.00016598,2]
[327914585,1716624632309,-8705.53991889,0.00016694,2]
[327914587,1716624632319,-3311.98606429,0.00017291,2]
[327914589,1716624632328,-975.0,0.00017292,2]
[327914591,1716624632337,-342.076,0.00017292,2]
[327914593,1716624632346,-342.076,0.00017292,2]
[327914594,1716624632356,-440.838,0.00017292,2]
[327914596,1716624632365,-1264.0,0.00017292,2]
[327914598,1716624632375,-288.0,0.00017292,2]
[327914599,1716624632384,-617.001,0.00017292,2]
[327914600,1716624632393,-1227.0,0.00017292,2]
[327914601,1716624632403,-165.304,0.00017292,2]
[327914602,1716624632413,-151.375,0.00017292,2]
[327914603,1716624632422,-2397.0,0.00017292,2]
[327914604,1716624632432,-641.39927192,0.00017292,2]
[327914605,1716624632445,-171.98072808,0.00017292,2]
[327914606,1716624632455,-447.654,0.00017292,2]
[327914607,1716624632466,-1138.0,0.00017292,2]
[327914608,1716624632476,-1650.0,0.00017292,2]
[327914609,1716624632485,-215.0,0.00017292,2]
[327914610,1716624632495,-150.0,0.00017292,2]
[327914611,1716624632507,-3164.0,0.00017292,2]
[327914612,1716624632517,-170.0,0.00017292,2]
[327914613,1716624632527,-202.0,0.00017292,2]
[327914614,1716624632536,-289.0,0.00017292,2]
[327914615,1716624632547,-5762.0,0.00017292,2]
[327914616,1716624632557,-1509.652,0.00017292,2]
[327914617,1716624632567,-37920.0,0.00017292,2]
[327914618,1716624632576,-2751.0,0.00017447,2]
[327914619,1716624632586,-280.0,0.00017499,2]
[327914620,1716624632596,-535.45,0.0001753,2]
[327914621,1716624632606,-1000.0,0.00017533,2]
[327914622,1716624632615,-200.0,0.00017583,2]
[327914623,1716624632625,-250.0,0.00017583,2]
[327914624,1716624632634,-151.0,0.00017594,3]
[327914625,1716624632644,-151.0,0.00017594,2]
[327914626,1716624632653,-250.0,0.00017708,2]
[327914627,1716624632663,-800.0,0.00017973,2]
[327914628,1716624632672,-804.30557965,0.00018,2]
[327914629,1716624632682,-151.0,0.00019222,2]
[327914630,1716624632691,-391.0,0.00019249,2]
[327914631,1716624632700,-1000.0,0.00019724,2]
[327914632,1716624632709,-173.34,0.00019807,2]
[327914633,1716624632719,-458.06978826,0.0002,2]
[327914634,1716624632730,-5189.03261963,0.0002,2]
[327914635,1716624632739,-155.0,0.0002,2]
[327914636,1716624632748,-155.0,0.0002,2]
[327914637,1716624632759,-1215.51528438,0.0002,2]
[327914641,1716624637764,-535.45,0.00019794,2]
[327914642,1716624637776,-5027.30707641,0.0002,2]
[327914643,1716624637789,-155.0,0.0002,4]
[327914644,1716624637801,-158.57592294,0.0002029,2]
[327914645,1716624637813,-263.53335922,0.00020291,2]
[327914646,1716624637824,-435.76932678,0.00020291,2]
[327914647,1716624637834,-1000.0,0.00020292,2]
[327914648,1716624637846,-1000.0,0.00020292,2]
[327914649,1716624637858,-1000.0,0.00020292,2]
[327914650,1716624637870,-1000.0,0.00020292,2]
[327914651,1716624637882,-1000.0,0.00020292,2]
[327914652,1716624637895,-973.0,0.00020292,2]
[327914653,1716624637908,-1262.0,0.00020292,2]
[327914654,1716624637919,-150.0,0.00020292,2]
[327914655,1716624637932,-613.0,0.00020292,2]
[327914656,1716624637946,-1225.0,0.00020292,2]
[327914657,1716624637959,-440.0,0.00020292,2]
[327914658,1716624637971,-1644.0,0.00020292,2]
[327914659,1716624637982,-164.0,0.00020292,2]
[327914660,1716624637992,-150.0,0.00020292,2]
[327914661,1716624638002,-1477.318,0.00020292,2]
[327914662,1716624638013,-810.0,0.00020292,2]
[327914663,1716624638024,-445.0,0.00020292,2]
[327914664,1716624638036,-1138.0,0.00020292,2]
[327914665,1716624638048,-1648.0,0.00020292,2]
[327914666,1716624638061,-215.0,0.00020292,2]
[327914667,1716624638073,-150.0,0.00020292,2]
[327914668,1716624638084,-2550.747,0.00020292,2]
[327914669,1716624638095,-150.0,0.00020292,2]
[327914670,1716624638107,-181.0,0.00020292,2]
[327914671,1716624638118,-712.892,0.00020292,2]
[327914672,1716624638130,-37920.0,0.00020292,2]
[327914673,1716624638141,-150.0,0.00020348,2]
[327914674,1716624638153,-165.37,0.0002039,2]
[327914676,1716624638164,-168.08,0.00020447,2]
[327914678,1716624638176,-23900.0,0.00020497,2]
[327914679,1716624638188,-171.3,0.00020602,2]
[327914680,1716624638201,-1008.02014055,0.00020624,2]
[327914681,1716624638212,-500.0,0.00020685,2]
[327914682,1716624638223,-250.0,0.00020896,2]
[327914683,1716624638234,-200.0,0.00020901,2]
[327914684,1716624638245,-5514.19481281,0.00021,2]
[327914685,1716624638257,-1050.0,0.00021,2]
[327914686,1716624638269,-548.0,0.00021174,2]
[327914687,1716624638279,-245.54297139,0.00021444,2]
[327914688,1716624638291,-1000.0,0.00021916,2]
[327914689,1716624638302,-280.99,0.00021918,2]
[327914690,1716624638314,-250.0,0.00021918,2]
[327914691,1716624638326,-788.11263962,0.00022,2]
[327914692,1716624638337,-535.45,0.00022058,2]
[327914693,1716624638347,-327.0,0.000224,5]
[327914694,1716624638358,-226.83691384,0.00022874,2]
[327914695,1716624638369,-1100.0,0.00023,2]
[327914696,1716624638379,-300.0,0.00023072,2]
[327914697,1716624638390,-505.6273792,0.00023094,2]
[327914698,1716624638402,-8700.54,0.00023176,2]
[327914699,1716624638413,-150.0,0.00023292,2]
[327914700,1716624638424,-150.0,0.00023292,2]
[327914701,1716624638435,-181.0,0.00023292,2]
[327914702,1716624638446,-37920.0,0.00023292,2]
[327914703,1716624638457,-185.46,0.0002336,2]
[327914704,1716624638470,-154.03121003,0.00023664,2]
[327914705,1716624638480,-154.03121003,0.00023761,2]
[327914706,1716624638492,-167.0,0.00023812,2]
[327914707,1716624638502,-173.34,0.0002401,2]
[327914708,1716624638514,-1000.0,0.00024107,2]
[327914709,1716624638525,-180.0,0.0002423,2]
[327914710,1716624638536,-167.0,0.00024237,2]
[327914711,1716624638548,-535.45,0.00024322,2]
[327914712,1716624638559,-8700.54,0.00024335,2]
[327914713,1716624638570,-219.47923133,0.00024349,2]
[327914714,1716624638581,-154.03121003,0.000244,2]
[327914715,1716624638592,-300.0,0.00024442,2]
[327914716,1716624638603,-1000.0,0.00024559,2]
[327914717,1716624638614,-167.0,0.00024795,2]
[327914718,1716624638624,-160.16802926,0.00024845,2]
[327914719,1716624638635,-262.76202295,0.00024889,2]
[327914720,1716624638646,-262.76202295,0.00024889,2]
[327914721,1716624638657,-262.76202295,0.00024889,2]
[327914722,1716624638668,-161.27564038,0.00024898,2]
[327914723,1716624638679,-161.27564038,0.00024898,2]
[327914724,1716624638690,-1150.0,0.00025,2]
[327914725,1716624638701,-282.1196435,0.0002502,2]
[327914726,1716624638712,-167.0,0.00025037,2]
[327914727,1716624638724,-154.03121003,0.00025285,2]
[327914728,1716624638735,-753.21042176,0.00025301,2]
[327914729,1716624638746,-154.03121003,0.00025303,2]
[327914730,1716624638757,-262.76202295,0.00025327,2]
[327914731,1716624638768,-8700.54,0.00025494,2]
[327914732,1716624638778,-1000.0,0.00025506,2]
[327914733,1716624638789,-1000.0,0.00025506,2]
[327914734,1716624638800,-1000.0,0.00025506,2]
[327914735,1716624638811,-1000.0,0.00025506,2]
[327914736,1716624638821,-153.30685889,0.00025703,2]
[327914737,1716624638831,-171.3,0.00025753,2]
[327914738,1716624638843,-167.0,0.00025777,2]
[327914739,1716624638853,-167.0,0.00025837,2]
[327914740,1716624638864,-165.37,0.00025869,2]
[327914741,1716624638875,-150.0,0.00026292,2]
[327914742,1716624638886,-150.0,0.00026292,2]
[327914743,1716624638897,-181.0,0.00026292,2]
[327914744,1716624638907,-15090.525,0.00026292,2]
[327914745,1716624638919,-1000.0,0.00026299,2]
[327914746,1716624638929,-1149.0,0.00026371,2]
[327914747,1716624638940,-535.45,0.00026585,2]
[327914748,1716624638951,-800.0,0.00026603,2]
[327914749,1716624638962,-167.0,0.00026637,2]
[327914750,1716624638972,-8700.54,0.00026653,2]
[327914751,1716624638983,-167.0,0.0002676,2]
[327914752,1716624638994,-2005.79258683,0.00026801,2]
[327914753,1716624639004,-168.08,0.00026921,2]
[327914754,1716624639016,-19636.47058133,0.00026934,2]
[327914755,1716624639027,-4817.67,0.00026935,2]
[327914756,1716624639038,-262.76202295,0.00027006,2]
[327914757,1716624639049,-183.97,0.00027397,10]
[327914758,1716624639060,-153.31,0.00027397,10]
[327914759,1716624639071,-919.5009134,0.000274,2]
[327914760,1716624639083,-200.0,0.000274,2]
[327914761,1716624639095,-167.0,0.00027437,2]
[327914762,1716624639107,-156.53862349,0.00027452,2]
[327914763,1716624639120,-1234.0,0.000275,2]
[327914764,1716624639131,-372.03274481,0.00027676,2]
[327914765,1716624639142,-167.0,0.00027743,2]
[327914766,1716624639154,-161.27564038,0.00027796,2]
[327914767,1716624639166,-8700.54,0.00027812,2]
[327914768,1716624639176,-200.0,0.00027835,2]
[327914769,1716624639188,-160.14420379,0.0002787,2]
[327914770,1716624639198,-3502.19990978,0.00027987,2]
[327914771,1716624639209,-2369.37,0.00028094,2]
[327914772,1716624639220,-500.0,0.00028102,2]
[327914773,1716624639231,-200.0,0.00028102,2]
[327914774,1716624639242,-2369.37,0.00028104,2]
[327914775,1716624639253,-153.30991185,0.00028111,2]
[327914776,1716624639264,-100000.0,0.00028114,2]
[327914777,1716624639276,-380.0,0.000282,5]
[327914778,1716624639287,-2369.37,0.00028204,2]
[327914779,1716624639298,-2369.37,0.00028204,2]
[327914780,1716624639309,-2369.37,0.00028204,2]
[327914781,1716624639319,-107299.29772733,0.00028214,2]
[327914782,1716624639334,-323.49456937,0.00028214,2]
[327914783,1716624639345,-663.75292215,0.00028214,2]
[327914784,1716624639365,-1126.60236182,0.00028214,2]
[327914785,1716624639393,-135586.85241933,0.00028214,2]
[327914786,1716624639656,-2105.75600433,0.00028214,2]
[327914787,1716624639687,-10274.0346688,0.00028214,2]
[327914788,1716624639699,-837.01145154,0.00028214,2]
[327914809,1716624640345,-180.55,0.00022412,2]
[327914810,1716624640355,-2964.73711561,0.00028214,2]
[327914811,1716624640456,-49972.07925972,0.00028214,2]
[327914812,1716624640468,-151.0,0.00028214,7]
[327914813,1716624640479,-151.0,0.00028214,7]
[327914814,1716624640489,-151.0,0.00028214,7]
[327914815,1716624640499,-733.758779,0.00028214,7]
[327914816,1716624640509,-151.0,0.00028214,7]
[327914817,1716624640519,-151.0,0.00028214,7]
[327914818,1716624640528,-733.758779,0.00028214,7]
[327914819,1716624640538,-151.0,0.00028214,7]
[327914820,1716624640548,-151.0,0.00028214,7]
[327914821,1716624640558,-151.0,0.00028214,7]
[327914822,1716624640568,-151.0,0.00028214,7]
[327914823,1716624640579,-151.0,0.00028214,7]
[327914824,1716624640588,-151.0,0.00028214,7]
[327914825,1716624640598,-151.0,0.00028214,7]
[327914826,1716624640608,-151.0,0.00028214,7]
[327914827,1716624640618,-151.0,0.00028214,7]
[327914828,1716624640627,-222.877802,0.00028214,7]
[327914829,1716624640637,-151.0,0.00028214,7]
[327914830,1716624640647,-151.0,0.00028214,7]
[327914831,1716624640656,-151.0,0.00028214,7]
[327914832,1716624640665,-167.0,0.00028237,2]
[327914833,1716624640675,-1046.9459923,0.00028314,2]
[327914834,1716624640684,-196.44531357,0.00028578,2]
[327914835,1716624640694,-8735.89126676,0.0002858,2]
[327914836,1716624640704,-200.0,0.00028635,2]
[327914837,1716624640714,-154.03121003,0.00028681,2]
[327914838,1716624640724,-262.76202295,0.00028684,2]
[327914839,1716624640733,-150.0,0.000288,6]
[327914840,1716624640743,-535.45,0.00028849,2]
[327914841,1716624640753,-24505.6498021,0.0002886,2]
[327914842,1716624640762,-4536.4548062,0.0002886,2]
[327914843,1716624640772,-698.5315186,0.0002886,2]
[327914844,1716624640782,-4360.9834142,0.0002886,2]
[327914845,1716624640791,-2665.59906,0.00028867,2]
[327914846,1716624640801,-500.0,0.00028867,2]
[327914847,1716624640811,-500.0,0.00028867,2]
[327914848,1716624640820,-500.0,0.00028867,2]
[327914849,1716624640830,-542.32,0.000289,2]
[327914850,1716624640840,-562.19,0.000289,2]
[327914851,1716624640849,-2666.2545297,0.00029,2]
[327914852,1716624640858,-1483.30909317,0.00029,2]
[327914853,1716624640868,-16277.0,0.00029138,2]
[327914854,1716624640877,-151.0,0.00029138,7]
[327914855,1716624640888,-151.0,0.00029138,7]
[327914856,1716624640897,-151.0,0.00029138,7]
[327914857,1716624640907,-151.0,0.00029138,7]
[327914858,1716624640917,-151.0,0.00029138,7]
[327914859,1716624640926,-251.446902,0.00029138,7]
[327914860,1716624640936,-151.0,0.00029138,7]
[327914861,1716624640945,-151.0,0.00029138,7]
[327914862,1716624640955,-150.0,0.00029292,2]
[327914863,1716624640964,-150.0,0.00029292,2]
[327914864,1716624640974,-181.0,0.00029292,2]
[327914865,1716624640983,-150.0,0.000293,6]
[327914866,1716624640992,-153.3068589,0.00029347,2]
[327914867,1716624641002,-180.74659826,0.000294,2]
[327914868,1716624641012,-22787.76060955,0.000295,2]
[327914869,1716624641024,-5301.01197096,0.000295,2]
[327914870,1716624641298,-961.51875694,0.000295,2]
[327914886,1716624642840,-766.55,0.00027397,10]
[327914888,1716624642850,-151.0,0.00028214,7]
[327914889,1716624642860,-224.71126424,0.000295,2]
[327914894,1716624643441,-11677.3357918,0.000295,2]
[327914895,1716624643452,-151.0,0.000295,7]
[327914896,1716624643461,-151.0,0.000295,7]
[327914897,1716624643474,-151.0,0.000295,7]
[327914898,1716624643483,-151.0,0.000295,7]
[327914899,1716624643492,-151.0,0.000295,7]
[327914900,1716624643501,-151.0,0.000295,7]
[327914901,1716624643511,-151.0,0.000295,7]
[327914902,1716624643520,-151.0,0.000295,7]
[327914903,1716624643529,-151.301701,0.000295,7]
[327914904,1716624643538,-151.0,0.000295,7]
[327914906,1716624643550,-151.0,0.000295,7]
[327914907,1716624643559,-164.587183,0.000295,7]
[327914908,1716624643568,-151.0,0.000295,7]
[327914909,1716624643577,-151.0,0.000295,7]
[327914910,1716624643588,-151.0,0.000295,7]
[327914911,1716624643597,-151.0,0.000295,7]
[327914912,1716624643606,-154.03121003,0.000295,2]
[327914913,1716624643616,-733.758779,0.000295,7]
[327914914,1716624643625,-225.981602,0.000295,7]
[327914915,1716624643634,-151.0,0.000295,7]